Cogmind - Beta 15 @@@ ROGUE MODE // 2025.06.09 @ 23:59:12 Player: CL-1C0 Result: Self-destructed Performance ------------- Evolutions (1) 500 Regions Visited (2) 400 Robots Destroyed (1) 5 Value Destroyed (47) 47 Prototype IDs (0) 0 Alien Tech Used (0) 0 Bonus (0) 0 TOTAL SCORE: 952 Bonus ------- None Cogmind --------- Core Integrity 400/400 Matter 300/300 Energy 99/100 System Corruption 0% Temperature Cool (0) Movement Core (50) Location -9/Materials Parts ------- > --- POWER (1) -------- (None) > --- PROPULSION (2) --- Light Treads > --- UTILITY (4) ------ (None) > --- WEAPON (2) ------- (None) > --- INVENTORY (5) ---- (None) Peak State ------------ > --- POWER ------------ (None) > --- PROPULSION ------- Light Treads > --- UTILITY ---------- (None) > --- WEAPON ----------- (None) > --- INVENTORY -------- Light Ion Engine Wheel Compact Wheel Medium Laser [Rating: 1] Favorites ----------- Power None Propulsion Light Treads Treads Light Treads Utility None Weapon None Build | -11 -10 -9 ------- Run | Yrd Mat Mat Slots Evolved 2 | . . 2 Power . | . . . Propulsion . | . . . Utility 2 | . . 2 Weapon . | . . . Parts Attached 1 | . 1 . Power . | . . . Engine . | . . . Core . | . . . Reactor . | . . . Propulsion 1 | . 1 . Treads 1 | . 1 . Leg . | . . . Wheel . | . . . Hover . | . . . Flight . | . . . Utility . | . . . Device . | . . . Storage . | . . . Processor . | . . . Hackware . | . . . Protection . | . . . Artifact . | . . . Weapon . | . . . Energy Gun . | . . . Energy Cannon . | . . . Ballistic Gun . | . . . Ballistic Cannon . | . . . Launcher . | . . . Special Weapon . | . . . Impact Weapon . | . . . Slashing Weapon . | . . . Piercing Weapon . | . . . Special Melee Weapon . | . . . Unidentified Prototypes . | . . . Parts Lost . | . . . Power . | . . . Propulsion . | . . . Utility . | . . . Weapon . | . . . Highest Loss Streak . | . . . To Critical Strikes . | . . . Average Backups . | . . . Power . | . . . Propulsion . | . . . Utility . | . . . Weapon . | . . . Tool/Special . | . . . Unused Backups 11 | . 11 . Power 2 | . 2 . Propulsion 5 | . 5 . Utility 1 | . 1 . Weapon 3 | . 3 . Tool/Special . | . . . Average Slot Usage (%) 12 | . 14 11 Treads 12 | . 14 11 Peak Build Rating 1 | . 1 1 Average Rating 1 | . 1 1 On Entrance 4 | 6 6 1 Naked Turns . | . . . Heaviest Build 13 | 13 . . Greatest Support 20 | 20 20 3 Greatest Overweight (x) . | . . . Average Overweight (x) . | . . . Largest Inventory Capacity 5 | . 5 5 Average Capacity 5 | . 5 5 Most Carried 4 | . 4 . Average Carried . | . . . Final Capacity 8 | 8 5 5 Final Carried 6 | 6 . . Class Distribution -------------------- 100% | Mutant Dominant Class ---------------- Mutant | -10/Materials Mutant | -9/Materials Resources | -11 -10 -9 ----------- Run | Yrd Mat Mat Matter Collected 200 | 200 . . Remotely . | . . . Salvage Created 5 | . 5 . Parts 1 | . 1 . Haulers Intercepted . | . . . Recyclers Shooed 1 | . 1 . Parts Field Recycled . | . . . Retrieved Matter . | . . . Parts Self-Destructed . | . . . Prevented . | . . . Kills | -11 -10 -9 ------- Run | Yrd Mat Mat Combat Hostiles Destroyed 1 | . 1 . Melee 1 | . 1 . Classes Destroyed 1 | . 1 . Grunt 1 | . 1 . Best Kill Streak 1 | . 1 . Combat Bots Only 1 | . 1 . Max Kills in Single Turn 1 | . 1 . Gunslinging . | . . . Exploded . | . . . Melee 1 | . 1 . Uniques/NPCs Destroyed . | . . . Combat | -11 -10 -9 -------- Run | Yrd Mat Mat Hostile Shots Fired 19 | . 19 . Missed 8 | . 8 . Hits 11 | . 11 . Projectile 11 | . 11 . Critical Strikes 1 | . 1 . Damage Taken 141 | . 141 . Core 69 | . 69 . Absorbed by Shields . | . . . Core Remaining (%) 86 | 100 72 . Volleys Fired . | . . . Largest . | . . . Hottest . | . . . Shots Fired . | . . . Gun . | . . . Cannon . | . . . Launcher . | . . . Special . | . . . Kinetic . | . . . Thermal . | . . . Explosive . | . . . Electromagnetic . | . . . Robot Hit Streak . | . . . Robot Miss Streak . | . . . Penetration Max . | . . . Secondary Targets . | . . . Shots Hit Robots . | . . . Core Hits 1 | . . 1 Critical Kills . | . . . Critical Parts Destroyed . | . . . Critical Strikes . | . . . Melee Attacks . | . . . Impact . | . . . Slashing . | . . . Piercing . | . . . Sneak Attacks . | . . . Combat Hostiles . | . . . Follow-up Attacks . | . . . Damage Inflicted 24 | . 20 4 Guns . | . . . Cannons . | . . . Explosions . | . . . Melee . | . . . Ramming 24 | . 20 4 Kinetic . | . . . Thermal . | . . . Explosive . | . . . Electromagnetic . | . . . Impact . | . . . Slashing . | . . . Piercing . | . . . Highest Corruption . | . . . Average Corruption . | . . . Corruption Purged . | . . . Corruption Blocked . | . . . Overload Shots . | . . . Overflow Damage . | . . . Projectiles . | . . . Explosions . | . . . Melee . | . . . Knockbacks . | . . . Impact . | . . . Kinetic . | . . . Secondary . | . . . Self-Inflicted Damage . | . . . Shots . | . . . Rammed 17 | . 15 2 Targets Rammed 18 | . 16 2 Kicked . | . . . Crushed 1 | . 1 . Highest Temperature 8 | . 8 . Average Temperature 8 | . 8 . Received Heat Transfer 96 | . 96 . Siege Activations . | . . . Martial Activations . | . . . Shielding Activations . | . . . Robots Disrupted . | . . . Combat Hostiles . | . . . Robots Corrupted . | . . . Combat Hostiles . | . . . Parts Fried . | . . . Impact Corruptions . | . . . Robots Melted . | . . . Combat Hostiles . | . . . Parts Melted . | . . . Heat Transferred . | . . . Parts Sabotaged . | . . . Parts Stolen . | . . . Parts Stripped . | . . . Power Chain Reactions . | . . . Alert | -11 -10 -9 ------- Run | Yrd Mat Mat Maximum Alert Level . | . . . Low Security (%) 100 | . 100 100 Level 1 . | . . . Level 2 . | . . . Level 3 . | . . . Level 4 . | . . . Level 5 . | . . . High Security . | . . . Max Security . | . . . Peak Influence 49 | . 49 16 Initial 16 | . . 16 Average 13 | . 13 13 Influence Increases 55 | . 49 6 Destroy 0b10 Robot/C 20 | . 20 . Destroy Leader 10 | . 10 . Successful Hack 25 | . 19 6 Influence Decreases 43 | . 10 33 Entered New Map 23 | . . 23 Time Decay 20 | . 10 10 Squads Dispatched 1 | . . 1 Investigation 1 | . . 1 Extermination . | . . . Reinforcement . | . . . Assault . | . . . Garrison . | . . . Intercept . | . . . Searches Triggered . | . . . Construction Impeded . | . . . Haulers Reinforced . | . . . Active Scanning Responses . | . . . Cargo Convoy Interrupts . | . . . Stealth | -11 -10 -9 --------- Run | Yrd Mat Mat Distress Signals . | . . . Communications Jammed . | . . . Distress Signals . | . . . Times Spotted 3 | . 3 . Peak Tracking Total 3 | . 3 . Tactical Retreats . | . . . Traps | -11 -10 -9 ------- Run | Yrd Mat Mat Traps Triggered . | . . . Indirectly . | . . . Trap Hack Attempts . | . . . Triggered . | . . . Disarmed . | . . . Reprogrammed . | . . . Reused . | . . . Traps Extracted . | . . . Installed . | . . . Triggered . | . . . Machines | -11 -10 -9 ---------- Run | Yrd Mat Mat Machines Disabled . | . . . Max in Single Turn . | . . . Machines Repaired . | . . . Machines Dismantled . | . . . Machines Sabotaged . | . . . Overloaded Fab Kills . | . . . Hacking | -11 -10 -9 --------- Run | Yrd Mat Mat Machines Accessed 5 | . 3 2 Terminals 5 | . 3 2 Fabricators . | . . . Repair Stations . | . . . Recycling Units . | . . . Scanalyzers . | . . . Garrison Access . | . . . Total Hacks 19 | . 13 6 Successful 5 | . 4 1 Failed 14 | . 9 5 Catastrophic 3 | . 2 1 Database Lockouts . | . . . Manual 14 | . 8 6 Terminals 19 | . 13 6 Fabricators . | . . . Repair Stations . | . . . Recycling Units . | . . . Scanalyzers . | . . . Garrison Access . | . . . Terminal Hacks 5 | . 4 1 Level Access Points 1 | . 1 . Emergency Access Points 1 | . 1 . Zone Layout 3 | . 2 1 Fabricator Hacks . | . . . Repair Station Hacks . | . . . Recycling Unit Hacks . | . . . Scanalyzer . | . . . Garrison Access Hacks . | . . . Unauthorized Hacks . | . . . Terminals . | . . . Fabricators . | . . . Repair Stations . | . . . Recycling Units . | . . . Scanalyzers . | . . . Garrison Access . | . . . Data Cores Recovered . | . . . Used . | . . . Hacking Detections 3 | . 1 2 Full Trace Events 1 | . . 1 Feedback Events . | . . . Feedback Blocked . | . . . Robot Schematics Acquired . | . . . Robots Built . | . . . Authchips . | . . . Time . | . . . Total Robot Build Rating . | . . . Part Schematics Acquired . | . . . Parts Built . | . . . Authchips . | . . . Time . | . . . Total Part Build Rating . | . . . Parts Repaired . | . . . Time . | . . . Parts Recycled . | . . . Recycled Matter . | . . . Retrieved Matter . | . . . Retrieved Components . | . . . Parts Scanalyzed . | . . . Part Schematics Acquired . | . . . Parts Damaged . | . . . Bothacking | -11 -10 -9 ------------ Run | Yrd Mat Mat Used RIF Installer . | . . . Robots Hacked . | . . . Non-combat . | . . . Combat . | . . . Robot Hacks Applied . | . . . Relay Couplers Released . | . . . Fabnet Peak Effective % . | . . . Robots Rewired . | . . . Allies Hacked . | . . . Hacks Repelled . | . . . Allies | -11 -10 -9 -------- Run | Yrd Mat Mat Total Allies . | . . . Largest Group . | . . . Highest-Rated Group . | . . . Highest-Rated Ally . | . . . Total Orders . | . . . Ally Attacks . | . . . Total Damage . | . . . Kills . | . . . Allies Corrupted . | . . . Allies Melted . | . . . Intel | -11 -10 -9 ------- Run | Yrd Mat Mat Active Infowar (turns) . | . . . Robot Analysis Total . | . . . Derelict Logs Recovered . | . . . Drone Launches . | . . . Drone Recoveries . | . . . Exploration | -11 -10 -9 ------------- Run | Yrd Mat Mat Turns Passed 110 | . 72 38 Spaces Moved 155 | 1 85 69 Core 153 | . 84 69 Treads 1 | . 1 . Legs 1 | 1 . . Wheels . | . . . Hover . | . . . Flight . | . . . Fastest Speed 50 | 120 50 50 Average Speed 51 | 120 51 50 Slowest Speed 160 | 120 160 50 Overloaded Moves . | . . . Propulsion Burnouts . | . . . Robots Hopped . | . . . Potential Cave-ins . | . . . Cave-ins Triggered . | . . . Exploration Rate (%) 14 | 2 32 10 Regions Visited 2 Branch Regions . Pre-discovered Areas . | . . . Known Exits Taken 1 | . 1 . Unknown Exits Taken 1 | 1 . . Scrap Searched . | . . . Spaces Dug . | . . . Terrain Destroyed . | . . . Melee . | . . . Projectile . | . . . AOE . | . . . Terrain Rammed . | . . . Walls Destroyed . | . . . Machines Disabled . | . . . Actions | -11 -10 -9 --------- Run | Yrd Mat Mat Total 176 | . 105 71 Wait . | . . . Move 153 | . 84 69 Hop . | . . . Pick Up . | . . . Fast Attach . | . . . Attach 1 | . 1 . Detach . | . . . Swap . | . . . Drop 4 | . 4 . Fire . | . . . Melee . | . . . Ram . | . . . Kick . | . . . Crush 18 | . 16 2 Escape Stasis . | . . . Rewire . | . . . Trap . | . . . Miscellaneous . | . . . Route ------- -11/Scrapyard -10/Materials (discovered 3 exits: *Mat x3) -9/Materials History --------- Turn | Location | Event 1 | -11/Scrapyard | Discovered new exit (range 0) 1 | -11/Scrapyard | Entered Materials 1 | -10/Materials | Released all parts (6) 41 | -10/Materials | Identified exit to Materials 73 | -10/Materials | Entered another Materials area 73 | -9/Materials | Evolved 2 slots: Utility x2 111 | -9/Materials | Self-destructed Last Messages --------------- 00052_ Critical hit (Burn: +37). 00052_ Slammed into G-47 Trooper. 00056_ Crushed G-47 Trooper. 00056_ G-47 Trooper destroyed. 00057_ K-01 Serf collects debris. 00066_ U-05 Engineer lays Concrete. 00066_ T-07 Excavator is excavating. 00068_ K-01 Serf collects debris. PARAMETERS=UTILITY+2 LOCATION=MATERIALS GOAL=ESCAPE 00096_ Connecting with Terminal... >>Layout(Zone) Retrieving Zone 5P layout... Downloaded map data. 00098_ Slammed into K-01 Serf. 00111_ K-01 Serf collects debris. 00111_ Connecting with Terminal... 00111_ ALERT: Suspicious activity at Terminal M012. Dispatching Investigation squad. Map ----- +----------------------------------------------------+ | ?????????????????????????????????????????? | | ?????????????????????????????????????????? | | ?????????????????????????????????????????? | | ?????????????????????????????????????????? | | ?????????????????????????????????????????? | | ?????????????????????????????????????????? | | ?????????????????????????????????????????? | | ?????????????????????????????????????????? | | ?????????????????????????????????????????? | | ?????????????????????????????????????????? | | ?????????????????????????????????????????? | | ?????????????????????????????????????????? | | ?????????????????????????????????????????? | | ?????????????????????????????????????????? | | ?????????????????????????????????????????? | | ?????????????????????????????????????????? | | ???????????????????????????#?????????????? | | ?????????????????????????? #?????????????? | | ?????????????????????????? #?????????????? | | ?????????????????????????? #?????????????? | | ?????????????????????????? #?????????????? | | ?????????????????????????? #?????????????? | | ???????????????????????### ###???????????? | | ???????????????????????# k ## ###??????? | | ????????????????######## #??????? | | ?????????######## k % @T +??????? | | ?????????# ## ###### #??????? | | ?????????# ## #????# #### #??????? | | ?????????# #????###+####??????????? | | ?????????# ####????# #??????????? | | ?????????# #???????# ""#??????????? | | ?????????### ###???????# T"#??????????? | | ???????????# #?????????# ""#??????????? | | ???????????# #?????????# #??????????? | | ???????????# #?????????# #??????????? | | ???????????# ##################??????????? | | ???????????# # # ##?????????? | | ???????????# # "" # # ?????????? | | ???????????# # "T # # ?????????? | | ???????????#%# "" # # ?????????? | | ???????????# + # """ """ # ?????????? | | ???????????# # # """ """ ##?????????? | | ???????????# ######## """ """ #??????????? | | ???????????# ## #?????? ??? | | ???????????####### ##+###+###+###??"" ?? | | ?????????????????# # """ # | | ?????????????????# + # | | ?????????????????# # """ # | | ?????????????????# ####### #??"" ?? | | ?????????????????# #?????# #???? ??? | +----------------------------------------------------+ Best States ------------- Heat Dissipation 28 Energy Generation 5 Energy Capacity 100 Matter Stores 300 Matter Capacity 300 Sight Range 16 Terrain Scan Density 10 Evasion (%) 50 Recoil Reduction 1 Item Schematics ----------------- None Robot Schematics ------------------ None Fabricated ------------ Nothing Repaired ---------- Nothing Alien Tech Used ----------------- None Achievements -------------- None Challenges ------------ None Game ------ Seed MyomerStorageDoomcannon Manual? 0 Play Time 00:03:31 Cumulative 530.0 hours Start 2025.06.09 @ 23:52:36 End 2025.06.09 @ 23:59:12 Sessions 1 Manual Loads 0 Difficulty Rogue Special Mode None Game No. 606 Rogue 606 Adventurer 0 Explorer 0 Win Type - Total 17 Types 11/0/5/1/0/0/0/0/0/0 Lore% 83 Gallery% 82 Achievement% 82 Wizard Run 0 Options --------- Layout 0 ASCII 0 Keyboard 0 Movement Numpad Keybinds 0 Fullscreen 1 Font 18/SmallcapsGlow Map View 76x50 Zoom Use 0% Tactical HUD 1 Map Filters NONE Filters NONE Steam 1 RUN: 11770f0a-89dc-4cc6-84c6-0b3c4c04c33c